fUSD/lending_fUSD_20240215
["ID","MTS","AMOUNT","RATE_DAILY","PERIOD"]
[314115320,1707995446019,-500.0,0.00039452,7]
[314115321,1707995446028,-500.0,0.00039452,7]
[314115322,1707995446037,-500.0,0.00039452,7]
[314115323,1707995446046,-500.0,0.00039452,7]
[314115324,1707995446055,-500.0,0.00039452,7]
[314115325,1707995446064,-535.58096977,0.00039452,7]
[314115326,1707995446074,-500.0,0.00039452,7]
[314115327,1707995446083,-500.0,0.00039452,7]
[314115328,1707995446092,-500.0,0.00039452,7]
[314115329,1707995446101,-500.0,0.00039452,7]
[314115330,1707995446111,-500.0,0.00039452,7]
[314115331,1707995446120,-500.0,0.00039452,7]
[314115332,1707995446129,-500.0,0.00039452,7]
[314115333,1707995446138,-500.0,0.00039452,7]
[314115334,1707995446147,-500.0,0.00039452,7]
[314115335,1707995446156,-500.0,0.00039452,7]
[314115336,1707995446166,-500.0,0.00039452,7]
[314115337,1707995446175,-500.0,0.00039452,7]
[314115338,1707995446184,-500.0,0.00039452,7]
[314115339,1707995446193,-500.0,0.00039452,7]
[314115340,1707995446203,-500.0,0.00039452,7]
[314115341,1707995446213,-500.0,0.00039452,7]
[314115342,1707995446223,-500.0,0.00039452,7]
[314115343,1707995446232,-500.0,0.00039452,7]
[314115344,1707995446241,-500.0,0.00039452,7]
[314115345,1707995446250,-500.0,0.00039452,7]
[314115346,1707995446259,-500.0,0.00039452,7]
[314115347,1707995446268,-500.0,0.00039452,7]
[314115348,1707995446278,-500.0,0.00039452,7]
[314115349,1707995446287,-500.0,0.00039452,7]
[314115350,1707995446296,-500.0,0.00039452,7]
[314115351,1707995446306,-500.0,0.00039452,7]
[314115352,1707995446315,-500.0,0.00039452,7]
[314115353,1707995446324,-500.0,0.00039452,7]
[314115354,1707995446334,-500.0,0.00039452,7]
[314115355,1707995446343,-500.0,0.00039452,7]
[314115356,1707995446353,-500.0,0.00039452,7]
[314115357,1707995446362,-500.0,0.00039452,7]
[314115358,1707995446371,-500.0,0.00039452,7]
[314115359,1707995446380,-500.0,0.00039452,7]
[314115360,1707995446389,-500.0,0.00039452,7]
[314115361,1707995446400,-500.0,0.00039452,7]
[314115362,1707995446409,-500.0,0.00039452,7]
[314115363,1707995446418,-500.0,0.00039452,7]
[314115364,1707995446427,-500.0,0.00039452,7]
[314115365,1707995446436,-500.0,0.00039452,7]
[314115366,1707995446445,-500.0,0.00039452,7]
[314115367,1707995446456,-500.0,0.00039452,7]
[314115368,1707995446466,-500.0,0.00039452,7]
[314115369,1707995446475,-977.22,0.00039452,7]
[314115370,1707995446484,-500.0,0.00039452,7]
[314115371,1707995446493,-500.0,0.00039452,7]
[314115372,1707995446502,-500.0,0.00039452,7]
[314115373,1707995446511,-500.0,0.00039452,7]
[314115374,1707995446521,-604.8605,0.00039452,7]
[314115375,1707995446530,-500.0,0.00039452,7]
[314115376,1707995446539,-520.94438638,0.00039452,7]
[314115377,1707995446550,-500.0,0.00039452,7]
[314115378,1707995446561,-500.0,0.00039452,7]
[314115379,1707995446573,-530.92753383,0.00039452,7]
[314115380,1707995446582,-500.0,0.00039452,7]
[314115381,1707995446592,-500.0,0.00039452,7]
[314115382,1707995446602,-500.0,0.00039452,7]
[314115383,1707995446612,-500.0,0.00039452,7]
[314115384,1707995446622,-500.0,0.00039452,7]
[314115385,1707995446632,-500.0,0.00039452,7]
[314115386,1707995446642,-261.26601581,0.00039452,7]
[314115387,1707995446651,-500.0,0.00039452,7]
[314115388,1707995446755,-498.001,0.00039452,7]
[314115389,1707995446766,-500.0,0.00039452,7]
[314115390,1707995446775,-500.0,0.00039452,7]
[314115391,1707995446784,-500.0,0.00039452,7]
[314115392,1707995446794,-500.0,0.00039452,7]
[314115393,1707995446803,-500.0,0.00039452,7]
[314115394,1707995446812,-500.0,0.00039452,7]
[314115395,1707995446821,-500.0,0.00039452,7]
[314115396,1707995446830,-500.0,0.00039452,7]
[314115397,1707995446839,-500.0,0.00039452,7]
[314115398,1707995446848,-551.5937854,0.00039452,7]
[314115399,1707995446858,-500.0,0.00039452,7]
[314115400,1707995446869,-500.0,0.00039452,7]
[314115401,1707995446880,-500.0,0.00039452,7]
[314115402,1707995446891,-500.0,0.00039452,7]
[314115403,1707995446901,-500.0,0.00039452,7]
[314115404,1707995446911,-500.0,0.00039452,7]
[314115405,1707995446920,-500.0,0.00039452,7]
[314115406,1707995446931,-500.0,0.00039452,7]
[314115407,1707995446940,-500.0,0.00039452,7]
[314115408,1707995446951,-500.0,0.00039452,7]
[314115409,1707995446961,-500.0,0.00039452,7]
[314115410,1707995446970,-500.0,0.00039452,7]
[314115411,1707995446979,-500.0,0.00039452,7]
[314115412,1707995446989,-500.0,0.00039452,7]
[314115413,1707995446998,-500.0,0.00039452,7]
[314115414,1707995447007,-634.31,0.00039452,7]
[314115415,1707995447018,-500.0,0.00039452,7]
[314115416,1707995447028,-500.0,0.00039452,7]
[314115417,1707995447038,-500.0,0.00039452,7]
[314115418,1707995447050,-500.0,0.00039452,7]
[314115419,1707995447059,-500.0,0.00039452,7]
[314115420,1707995447069,-500.0,0.00039452,7]
[314115421,1707995447078,-500.0,0.00039452,7]
[314115422,1707995447086,-500.0,0.00039452,7]
[314115423,1707995447096,-500.0,0.00039452,7]
[314115424,1707995447105,-500.0,0.00039452,7]
[314115425,1707995447115,-500.0,0.00039452,120]
[314115426,1707995447124,-500.0,0.00039452,7]
[314115427,1707995447134,-500.0,0.00039452,7]
[314115428,1707995447143,-151.0,0.00039452,7]
[314115429,1707995447152,-500.0,0.00039452,7]
[314115430,1707995447163,-500.0,0.00039452,2]
[314115431,1707995447173,-151.0,0.00039452,7]
[314115432,1707995447182,-500.0,0.00039452,7]
[314115433,1707995447191,-500.0,0.00039452,7]
[314115434,1707995447201,-500.0,0.00039452,7]
[314115435,1707995447210,-500.0,0.00039452,7]
[314115436,1707995447219,-500.0,0.00039452,7]
[314115437,1707995447228,-500.0,0.00039452,7]
[314115438,1707995447238,-500.0,0.00039452,7]
[314115439,1707995447248,-500.0,0.00039452,7]
[314115440,1707995447257,-557.50893271,0.00039452,7]
[314115441,1707995447266,-500.0,0.00039452,7]
[314115442,1707995447275,-500.0,0.00039452,7]
[314115443,1707995447284,-500.0,0.00039452,7]
[314115444,1707995447293,-500.0,0.00039452,7]
[314115445,1707995447302,-586.88,0.00039452,7]
[314115446,1707995447312,-500.0,0.00039452,7]
[314115447,1707995447321,-209.36922202,0.00039452,7]
[314115448,1707995447331,-500.0,0.00039452,7]
[314115449,1707995447342,-500.0,0.00039452,7]
[314115450,1707995447351,-504.70386238,0.00039452,7]
[314115451,1707995447360,-500.0,0.00039452,7]
[314115452,1707995447369,-500.0,0.00039452,7]
[314115453,1707995447377,-1000.0,0.00039452,7]
[314115454,1707995447386,-500.0,0.00039452,7]
[314115455,1707995447395,-500.0,0.00039452,7]
[314115456,1707995447404,-155.39,0.00039466,2]
[314115457,1707995447414,-151.021518,0.00039498,21]
[314115458,1707995447423,-434.31,0.00039534,2]
[314115459,1707995447433,-302.043036,0.00039548,21]
[314115460,1707995447442,-184.93,0.0003963,2]
[314115461,1707995447454,-690.05,0.000397,7]
[314115462,1707995447465,-539.00859521,0.00039726,7]
[314115463,1707995447474,-500.0,0.00039726,7]
[314115464,1707995447484,-502.8241964,0.00039726,7]
[314115465,1707995447493,-500.0,0.00039726,7]
[314115466,1707995447502,-500.0,0.00039726,7]
[314115467,1707995447512,-500.0,0.00039726,7]
[314115468,1707995447521,-500.0,0.00039726,7]
[314115469,1707995447530,-557.39,0.00039726,7]
[314115470,1707995447540,-500.0,0.00039726,7]
[314115471,1707995447550,-500.0,0.00039726,7]
[314115472,1707995447560,-500.0,0.00039726,7]
[314115473,1707995447569,-264.31,0.00039726,7]
[314115474,1707995447578,-314.88671762,0.00039726,7]
[314115475,1707995447588,-500.0,0.00039726,7]
[314115476,1707995447598,-500.0,0.00039726,7]
[314115477,1707995447608,-519.68785061,0.00039726,7]
[314115478,1707995447619,-151.99329263,0.00039726,7]
[314115479,1707995447628,-500.0,0.00039726,7]
[314115480,1707995447637,-500.0,0.00039726,7]
[314115481,1707995447646,-500.0,0.00039726,7]
[314115482,1707995447656,-500.0,0.00039726,7]
[314115483,1707995447665,-500.0,0.00039726,7]
[314115484,1707995447675,-366.58325743,0.00039726,7]
[314115485,1707995447684,-170.68152518,0.00039726,7]
[314115486,1707995447693,-500.0,0.00039726,7]
[314115487,1707995447703,-605.86655673,0.00039726,7]
[314115488,1707995447712,-278.55914818,0.00039726,7]
[314115489,1707995447721,-453.10928411,0.00039726,7]
[314115490,1707995447730,-528.47567377,0.00039726,7]
[314115491,1707995447740,-500.0,0.00039726,7]
[314115492,1707995447749,-500.0,0.00039726,7]
[314115493,1707995447758,-500.0,0.00039726,7]
[314115494,1707995447768,-500.0,0.00039726,7]
[314115495,1707995447777,-602.98371002,0.00039726,2]
[314115496,1707995447787,-500.0,0.00039726,7]
[314115497,1707995447798,-500.0,0.00039726,7]
[314115498,1707995447810,-500.0,0.00039726,7]
[314115499,1707995447819,-193.21607964,0.00039726,7]
[314115500,1707995447830,-158.64553389,0.00039726,7]
[314115501,1707995447839,-1301.15,0.00039726,7]
[314115502,1707995447850,-284.58365405,0.00039726,7]
[314115503,1707995447860,-500.0,0.00039726,7]
[314115504,1707995447869,-602.25,0.00039726,7]
[314115505,1707995447878,-262.9,0.00039726,7]
[314115506,1707995447887,-610.44684359,0.00039726,7]
[314115507,1707995447897,-447.9198866,0.00039726,7]
[314115508,1707995447907,-617.42,0.00039726,7]
[314115509,1707995447916,-185.67304553,0.00039726,7]
[314115510,1707995447926,-500.0,0.00039726,7]
[314115511,1707995447936,-500.0,0.00039726,7]
[314115512,1707995447946,-524.56973147,0.00039726,7]
[314115513,1707995447957,-500.0,0.00039726,7]
[314115514,1707995447966,-357.11,0.00039726,7]
[314115515,1707995447975,-227.49913039,0.00039726,7]
[314115516,1707995447985,-386.5493029,0.00039726,7]
[314115517,1707995447994,-500.0,0.00039726,7]
[314115518,1707995448004,-500.0,0.00039726,15]
[314115519,1707995448013,-542.09300149,0.00039726,7]
[314115520,1707995448023,-500.0,0.00039726,7]
[314115521,1707995448032,-500.0,0.00039726,7]
[314115522,1707995448042,-518.01,0.00039726,7]
[314115523,1707995448051,-1458.79,0.00039726,7]
[314115524,1707995448060,-500.0,0.00039726,7]
[314115525,1707995448069,-382.37191466,0.00039726,7]
[314115526,1707995448078,-500.0,0.00039726,7]
[314115527,1707995448087,-500.0,0.00039726,7]
[314115528,1707995448097,-765.54,0.00039726,7]
[314115529,1707995448106,-500.0,0.00039726,7]
[314115530,1707995448115,-593.3,0.00039726,7]
[314115531,1707995448124,-500.0,0.00039726,7]
[314115532,1707995448135,-458.59362326,0.00039726,7]
[314115533,1707995448144,-500.0,0.00039726,7]
[314115534,1707995448153,-500.0,0.00039726,7]
[314115535,1707995448162,-307.19,0.00039726,7]
[314115536,1707995448171,-500.0,0.00039726,7]
[314115537,1707995448180,-500.0,0.00039726,7]
[314115538,1707995448189,-500.0,0.00039726,7]
[314115539,1707995448198,-6533.59,0.00039726,7]
[314115540,1707995448209,-500.0,0.00039726,7]
[314115541,1707995448218,-500.0,0.00039726,7]
[314115542,1707995448227,-256.28946934,0.00039726,7]
[314115543,1707995448236,-503.46,0.00039726,7]
[314115544,1707995448245,-500.0,0.00039726,7]
[314115545,1707995448254,-500.0,0.00039726,7]
[314115546,1707995448263,-500.0,0.00039726,7]
[314115547,1707995448273,-428.78326766,0.00039726,7]
[314115548,1707995448282,-500.0,0.00039726,7]
[314115549,1707995448291,-601.21,0.00039726,7]
[314115550,1707995448301,-500.0,0.00039726,7]
[314115551,1707995448310,-500.0,0.00039726,7]
[314115552,1707995448319,-500.0,0.00039726,7]
[314115553,1707995448328,-500.0,0.00039726,7]
[314115554,1707995448337,-501.61320551,0.00039726,7]
[314115555,1707995448346,-606.98630509,0.00039726,7]
[314115556,1707995448356,-552.0,0.00039726,7]
[314115557,1707995448365,-500.0,0.00039726,7]
[314115558,1707995448374,-500.0,0.00039726,7]
[314115559,1707995448384,-500.0,0.00039726,7]
[314115560,1707995448394,-500.0,0.00039726,7]
[314115561,1707995448404,-500.0,0.00039726,7]
[314115562,1707995448413,-500.0,0.00039726,7]
[314115563,1707995448422,-500.0,0.00039726,7]
[314115564,1707995448433,-589.8959975,0.00039726,7]
[314115565,1707995448442,-500.0,0.00039726,7]
[314115566,1707995448452,-500.0,0.00039726,7]
[314115567,1707995448463,-500.0,0.00039726,7]
[314115568,1707995448473,-500.0,0.00039726,7]
[314115569,1707995448483,-500.0,0.00039726,7]
[314115570,1707995448492,-500.0,0.00039726,7]
[314115571,1707995448502,-500.0,0.00039726,7]
[314115572,1707995448511,-500.0,0.00039726,7]
[314115573,1707995448520,-500.0,0.00039726,7]
[314115574,1707995448529,-500.0,0.00039726,7]
[314115575,1707995448538,-530.23,0.00039726,7]
[314115576,1707995448549,-500.0,0.00039726,7]
[314115577,1707995448559,-977.22,0.00039726,7]
[314115578,1707995448568,-500.0,0.00039726,7]
[314115579,1707995448577,-500.0,0.00039726,7]
[314115580,1707995448586,-644.23906857,0.00039726,7]
[314115581,1707995448596,-500.0,0.00039726,7]
[314115582,1707995448605,-500.0,0.00039726,7]
[314115583,1707995448614,-500.0,0.00039726,7]
[314115584,1707995448623,-500.0,0.00039726,7]
[314115585,1707995448632,-500.0,0.00039726,7]
[314115586,1707995448642,-500.0,0.00039726,7]
[314115587,1707995448652,-334.2186548,0.00039726,7]
[314115588,1707995448663,-592.69595017,0.00039726,7]
[314115589,1707995448672,-559.27,0.00039726,7]
[314115590,1707995448682,-195.95790686,0.00039726,7]
[314115591,1707995448693,-500.0,0.00039726,7]
[314115592,1707995448703,-607.30732026,0.00039726,7]
[314115593,1707995448712,-500.0,0.00039726,7]
[314115594,1707995448721,-219.25636154,0.00039726,7]
[314115595,1707995448731,-500.0,0.00039726,7]
[314115596,1707995448740,-500.0,0.00039726,7]
[314115597,1707995448749,-500.0,0.00039726,7]
[314115598,1707995448758,-500.0,0.00039726,7]
[314115599,1707995448767,-634.31,0.00039726,7]
[314115600,1707995448777,-500.0,0.00039726,7]
[314115601,1707995448786,-500.0,0.00039726,7]
[314115602,1707995448795,-492.85772474,0.00039726,7]
[314115603,1707995448806,-500.0,0.00039726,7]
[314115604,1707995448816,-555.63831004,0.00039726,7]
[314115605,1707995448827,-500.0,0.00039726,7]
[314115606,1707995448836,-408.48075538,0.00039726,2]
[314115607,1707995448845,-500.0,0.00039726,7]
[314115608,1707995448855,-500.0,0.00039726,7]
[314115609,1707995448865,-151.021518,0.00039798,21]
[314115610,1707995448874,-23496.02574456,0.000398,2]
[314115611,1707995448977,-151.0,0.000398,7]
[314115612,1707995448986,-155.39,0.00039849,2]
[314115613,1707995448995,-286.2,0.00039863,2]
[314115614,1707995449004,-504546.33554574,0.0003988,2]
[314115615,1707995449014,-182.071842,0.0003988,7]
[314115616,1707995449024,-182.071842,0.0003988,7]
[314115617,1707995449035,-151.0,0.0003988,7]
[314115618,1707995449044,-171.083297,0.0003988,7]
[314115619,1707995449054,-394.46023975,0.000399,5]
[314115620,1707995449064,-153.9,0.000399,3]
[314115621,1707995449073,-153.9,0.000399,3]
[314115622,1707995449083,-153.9,0.000399,3]
[314115623,1707995449093,-153.9,0.000399,3]
[314115624,1707995449102,-153.9,0.000399,3]
[314115625,1707995449112,-153.9,0.000399,3]
[314115626,1707995449121,-153.9,0.000399,3]
[314115627,1707995449130,-153.9,0.000399,3]
[314115628,1707995449140,-153.9,0.000399,3]
[314115629,1707995449149,-153.9,0.000399,3]
[314115630,1707995449159,-153.9,0.000399,3]
[314115631,1707995449168,-153.9,0.000399,3]
[314115632,1707995449177,-153.9,0.000399,3]
[314115633,1707995449186,-151.0,0.00039979,7]
[314115634,1707995449195,-240.84506107,0.00039989,2]
[314115635,1707995449205,-200.0,0.0003999,7]
[314115636,1707995449214,-200.0,0.0003999,7]
[314115637,1707995449223,-213.38904749,0.0003999,7]
[314115638,1707995449232,-200.0,0.0003999,7]
[314115639,1707995449241,-500.0,0.00039998,7]
[314115640,1707995449251,-500.0,0.00039999,7]
[314115641,1707995449260,-500.0,0.00039999,7]
[314115642,1707995449269,-527.13,0.00039999,7]
[314115643,1707995449279,-500.0,0.00039999,31]
[314115644,1707995449289,-555.79620533,0.00039999,31]
[314115645,1707995449298,-500.0,0.00039999,31]
[314115646,1707995449307,-555.79620533,0.00039999,31]
[314115647,1707995449316,-500.0,0.00039999,31]
[314115648,1707995449325,-555.79620533,0.00039999,31]
[314115649,1707995449335,-500.0,0.00039999,31]
[314115650,1707995449344,-555.79620533,0.00039999,31]
[314115651,1707995449354,-500.0,0.00039999,31]
[314115652,1707995449363,-555.79620533,0.00039999,31]
[314115653,1707995449372,-555.79620533,0.00039999,31]
[314115654,1707995449382,-500.0,0.00039999,31]
[314115655,1707995449391,-555.79620533,0.00039999,31]
[314115656,1707995449399,-555.79620533,0.00039999,31]
[314115657,1707995449408,-500.0,0.00039999,31]
[314115658,1707995449417,-555.79620533,0.00039999,31]
[314115659,1707995449426,-555.79620533,0.00039999,31]
[314115660,1707995449435,-321.92135847,0.00039999,31]
[314115661,1707995449444,-555.79620533,0.00039999,31]
[314115662,1707995449454,-500.0,0.00039999,31]
[314115663,1707995449466,-555.79620533,0.00039999,31]
[314115664,1707995449476,-555.79620533,0.00039999,31]
[314115665,1707995449486,-555.79620533,0.00039999,31]
[314115666,1707995449495,-555.79620533,0.00039999,31]
[314115667,1707995449504,-500.0,0.00039999,31]
[314115668,1707995449513,-555.79620533,0.00039999,31]
[314115669,1707995449523,-555.79620533,0.00039999,31]
[314115670,1707995449533,-555.79620533,0.00039999,31]
[314115671,1707995449545,-555.79620533,0.00039999,31]
[314115672,1707995449557,-555.79620533,0.00039999,31]
[314115673,1707995449567,-555.79620533,0.00039999,31]
[314115674,1707995449578,-555.79620533,0.00039999,31]
[314115675,1707995449590,-555.79620533,0.00039999,31]
[314115676,1707995449601,-555.79620533,0.00039999,31]
[314115677,1707995449614,-555.79620533,0.00039999,31]
[314115678,1707995449623,-555.79620533,0.00039999,31]
[314115679,1707995449634,-555.79620533,0.00039999,31]
[314115680,1707995449643,-555.79620533,0.00039999,31]
[314115681,1707995449652,-555.79620533,0.00039999,31]
[314115682,1707995449663,-555.79620533,0.00039999,31]
[314115683,1707995449674,-555.79620533,0.00039999,31]
[314115684,1707995449684,-555.79620533,0.00039999,31]
[314115685,1707995449693,-555.79620533,0.00039999,31]
[314115686,1707995449703,-555.79620533,0.00039999,31]
[314115687,1707995449712,-555.79620533,0.00039999,31]
[314115688,1707995449721,-555.79620533,0.00039999,31]
[314115689,1707995449731,-555.79620533,0.00039999,31]
[314115690,1707995449742,-555.79620533,0.00039999,31]
[314115691,1707995449751,-555.79620533,0.00039999,31]
[314115692,1707995449760,-555.79620533,0.00039999,31]
[314115693,1707995449769,-555.79620533,0.00039999,31]
[314115694,1707995449778,-555.79620533,0.00039999,31]
[314115695,1707995449787,-555.79620533,0.00039999,31]
[314115696,1707995449796,-555.79620533,0.00039999,31]
[314115697,1707995449805,-555.79620533,0.00039999,31]
[314115698,1707995449814,-555.79620533,0.00039999,31]
[314115699,1707995449824,-555.79620533,0.00039999,31]
[314115700,1707995449833,-555.79620533,0.00039999,31]
[314115701,1707995449842,-555.79620533,0.00039999,31]
[314115702,1707995449852,-555.79620533,0.00039999,31]
[314115703,1707995449861,-555.79620533,0.00039999,31]
[314115704,1707995449871,-555.79620533,0.00039999,31]
[314115705,1707995449880,-555.79620533,0.00039999,31]
[314115706,1707995449889,-555.79620533,0.00039999,31]
[314115707,1707995449898,-555.79620533,0.00039999,31]
[314115708,1707995449908,-555.79620533,0.00039999,31]
[314115709,1707995449917,-555.79620533,0.00039999,31]
[314115710,1707995449926,-555.79620533,0.00039999,31]
[314115711,1707995449936,-555.79620533,0.00039999,31]
[314115712,1707995449945,-555.79620533,0.00039999,31]
[314115713,1707995449955,-555.79620533,0.00039999,31]
[314115714,1707995449964,-555.79620533,0.00039999,31]
[314115715,1707995449973,-555.79620533,0.00039999,31]
[314115716,1707995449982,-555.79620533,0.00039999,31]
[314115717,1707995449991,-555.79620533,0.00039999,31]
[314115718,1707995450001,-555.79620533,0.00039999,31]
[314115719,1707995450010,-541.90130019,0.00039999,31]
[314115720,1707995450019,-541.90130019,0.00039999,31]
[314115721,1707995450029,-541.90130019,0.00039999,31]
[314115722,1707995450038,-541.90130019,0.00039999,31]
[314115723,1707995450047,-541.90130019,0.00039999,31]
[314115724,1707995450056,-541.90130019,0.00039999,31]
[314115725,1707995450066,-541.90130019,0.00039999,31]
[314115726,1707995450075,-541.90130019,0.00039999,31]
[314115727,1707995450085,-541.90130019,0.00039999,31]
[314115728,1707995450094,-541.90130019,0.00039999,31]
[314115729,1707995450103,-541.90130019,0.00039999,31]
[314115730,1707995450113,-541.90130019,0.00039999,31]
[314115731,1707995450122,-541.90130019,0.00039999,31]
[314115732,1707995450131,-541.90130019,0.00039999,31]
[314115733,1707995450141,-541.90130019,0.00039999,31]
[314115734,1707995450150,-541.90130019,0.00039999,31]
[314115735,1707995450160,-541.90130019,0.00039999,31]
[314115736,1707995450169,-541.90130019,0.00039999,31]
[314115737,1707995450179,-541.90130019,0.00039999,31]
[314115738,1707995450188,-541.90130019,0.00039999,31]
[314115739,1707995450197,-541.90130019,0.00039999,31]
[314115740,1707995450207,-541.90130019,0.00039999,31]
[314115741,1707995450216,-541.90130019,0.00039999,31]
[314115742,1707995450226,-541.90130019,0.00039999,31]
[314115743,1707995450235,-500.0,0.00039999,7]
[314115744,1707995450245,-500.0,0.00039999,7]
[314115745,1707995450254,-500.0,0.00039999,7]
[314115746,1707995450263,-187.45958802,0.00039999,7]
[314115747,1707995450273,-150.0,0.00039999,2]
[314115748,1707995450282,-100000.0,0.0004,20]
[314115749,1707995450291,-10790.05000525,0.0004,30]
[314115750,1707995450301,-1000.0,0.0004,2]
[314115751,1707995450311,-508.69458722,0.0004,10]
[314115752,1707995450320,-301.30142796,0.0004,5]
[314115753,1707995450329,-1678.35630843,0.0004,7]
[314115754,1707995450339,-833136.40723549,0.0004,30]
[314115755,1707995450514,-24867.87669527,0.0004,30]
[314115756,1707995450526,-2208.99992206,0.0004,30]
[314115757,1707995450536,-1186.46542308,0.0004,7]
[314115758,1707995450549,-783.45476951,0.0004,7]
[314115759,1707995450564,-638.24848553,0.0004,7]
[314115760,1707995450718,-569.82184861,0.00039452,7]
[314115761,1707995450728,-1000.0,0.00039726,7]
[314115762,1707995450737,-2272.17815139,0.0004,7]
[314115763,1707995450749,-791.91802622,0.0004,7]
[314115764,1707995450899,-17150.0948355,0.0004,7]
[314115765,1707995450937,-418.576,0.00037209,2]
[314115766,1707995450949,-1100.76216582,0.00037209,2]
[314115767,1707995450961,-333.08183418,0.00037209,2]
[314115768,1707995450970,-197.63440419,0.000379,2]
[314115769,1707995450980,-4524.39513112,0.0004,7]
[314115770,1707995450991,-5378.57496095,0.0004,7]
[314115771,1707995451003,-2061.14003258,0.0004,7]
[314115772,1707995451014,-1779.49227468,0.0004,7]
[314115773,1707995451064,-961.70879047,0.0004,7]
[314115774,1707995451076,-2778.314,0.0004,7]
[314115775,1707995451087,-108419.50405958,0.0004,7]
[314115776,1707995451096,-737.48696302,0.0004,7]
[314115777,1707995451106,-459.05,0.0004,2]
[314115778,1707995451115,-151.0,0.0004,7]
[314115779,1707995451124,-500.0,0.0004,7]
[314115780,1707995451134,-255.0,0.0004,12]
[314115781,1707995451143,-500.0,0.0004,7]
[314115782,1707995451153,-3137.0,0.0004,30]
[314115783,1707995451162,-163.93965785,0.0004,7]
[314115784,1707995451172,-557.39,0.0004,7]
[314115785,1707995451182,-564.40139983,0.0004,7]
[314115786,1707995451192,-500.0,0.0004,7]
[314115787,1707995451201,-1000.0,0.0004,2]
[314115788,1707995451211,-429.41056187,0.0004,7]
[314115789,1707995451220,-500.0,0.0004,7]
[314115790,1707995451230,-255.0,0.0004,12]
[314115791,1707995451239,-500.0,0.0004,7]
[314115792,1707995451249,-500.0,0.0004,7]
[314115793,1707995451258,-500.0,0.0004,7]
[314115794,1707995451268,-1301.15,0.0004,7]
[314115795,1707995451277,-151.0,0.0004,7]
[314115796,1707995451286,-500.0,0.0004,7]
[314115797,1707995451296,-617.42,0.0004,7]
[314115798,1707995451305,-500.0,0.0004,7]
[314115799,1707995451315,-255.0,0.0004,12]
[314115800,1707995451324,-920.0,0.0004,50]
[314115801,1707995451333,-4601.39,0.0004,2]
[314115802,1707995451343,-500.0,0.0004,7]
[314115803,1707995451353,-1458.79,0.0004,7]
[314115804,1707995451362,-255.0,0.0004,12]
[314115805,1707995451372,-500.0,0.0004,7]
[314115806,1707995451382,-500.0,0.0004,7]
[314115807,1707995451391,-500.0,0.0004,7]
[314115808,1707995451401,-765.54,0.0004,7]
[314115809,1707995451410,-500.0,0.0004,7]
[314115810,1707995451419,-151.0,0.0004,7]
[314115811,1707995451428,-500.0,0.0004,7]
[314115812,1707995451438,-500.0,0.0004,7]
[314115813,1707995451447,-500.0,0.0004,7]
[314115814,1707995451460,-1000.0,0.0004,2]
[314115815,1707995451469,-6533.59,0.0004,7]
[314115816,1707995451478,-500.0,0.0004,7]
[314115817,1707995451487,-500.0,0.0004,7]
[314115818,1707995451497,-503.46,0.0004,7]
[314115819,1707995451507,-774.1292841,0.0004,2]